[Event "WJCC U20 Girls 2019"]
[Site "New Delhi"]
[Date "2019.10.17"]
[Round "4.18"]
[White "Salimova, Nurgyul"]
[Black "Nomindalai Tumurbaatar"]
[Result "1/2-1/2"]
[ECO "C41"]
[WhiteElo "2415"]
[BlackElo "2061"]
[Annotator "NA"]
[PlyCount "119"]
[EventDate "2019.10.15"]
[EventType "swiss"]
[EventCountry "IND"]
[SourceTitle "playchess.com"]
[Source "ChessBase"]
[SourceQuality "1"]
[TimeControl "40/5400+30:1800+30"]

1. e4 {[%emt 0:00:00]} d6 {[%emt 0:00:00]} 2. d4 {[%emt 0:00:00]} Nf6 {[%emt 0:00:00]} 3. Nc3 {[%emt 0:00:00]} e5 {[%emt 0:00:08]} 4. Nf3 {[%emt 0:00:00]} Nbd7 {[%emt 0:00:15]} 5. g4 {[%emt 0:00:12]} h6 {[%emt 0:02:20]} 6. Rg1 {[%emt 0:00:57]} c6 {[%emt 0:04:34]} 7. h4 {[%emt 0:02:42]} g6 {[%emt 0:07:13]} (7... Qa5 $11) 8. Be3 {[%emt 0:20:00]} Qa5 $14 {[%emt 0:04:35]} 9. Nd2 {[%emt 0:06:10]} b5 {[%emt 0:04:58]} 10. a3 {[%emt 0:02:56]} a6 {[%emt 0:04:54]} 11. Be2 {[%emt 0:08:48]} Bg7 {[%emt 0:06:57]} 12. f4 {[%emt 0:04:46]} h5 {[%emt 0:13:21]} 13. g5 {[%emt 0:15:37]} Ng4 {[%emt 0:03:58]} 14. Bxg4 {[%emt 0:00:08]} hxg4 {[%emt 0:00:07]} 15. dxe5 {[%emt 0:00:27]} dxe5 {[%emt 0:00:30]} 16. f5 {[%emt 0:00:57]} Rxh4 {[%emt 0:02:17]} 17. fxg6 {[%emt 0:01:46]} fxg6 {[%emt 0:00:21]} 18. Qe2 {[%emt 0:01:43]} Nf8 {[%emt 0:08:03]} 19. Qf2 {[%emt 0:02:24]} g3 {[%emt 0:02:02]} 20. Rxg3 {[%emt 0:00:56]} Qc7 {[%emt 0:02:38]} 21. O-O-O {[%emt 0:01:47]} Be6 {[%emt 0:00:46]} 22. Bb6 {[%emt 0:09:42]} Qf7 {[%emt 0:02:42]} 23. Nf3 {[%emt 0:04:02]} Rh8 {[%emt 0:06:31]} 24. Kb1 {[%emt 0:01:37]} Rc8 {[%emt 0:02:04]} 25. Ba5 {[%emt 0:03:21]} Qf4 {[%emt 0:06:29]} 26. Ne2 {[%emt 0:03:40]} Qxe4 {[%emt 0:00:23]} 27. Nd2 {[%emt 0:00:43]} Qd5 {[%emt 0:01:07]} 28. Nc3 {[%emt 0:00:13]} Qd4 {[%emt 0:00:06]} 29. Qe1 {[%emt 0:01:28]} Bg4 {[%emt 0:05:57]} 30. Rd3 {[%emt 0:02:18]} Qf4 {[%emt 0:01:42]} 31. Nde4 {[%emt 0:02:51]} Ra8 {[%emt 0:03:04]} 32. Nd6+ {[%emt 0:01:08]} Ke7 {[%emt 0:00:06]} 33. Rd4 {[%emt 0:02:28]} Qf3 {[%emt 0:01:38]} 34. Bb4 {[%emt 0:00:23]} Rh1 {[%emt 0:02:18]} 35. Qxh1 {[%emt 0:00:35]} Qxh1 {[%emt 0:00:07]} 36. Rxh1 {[%emt 0:00:10]} exd4 {[%emt 0:00:04]} 37. Nce4 {[%emt 0:00:47]} a5 {[%emt 0:00:59]} 38. Nf5+ {[%emt 0:00:15]} Kd8 {[%emt 0:02:47]} 39. Bxf8 {[%emt 0:00:46]} Bxf8 {[%emt 0:00:08]} 40. Nxd4 {[%emt 0:00:07]} Kc7 {[%emt 0:00:52]} 41. Nf6 {[%emt 0:10:16]} Bc8 {[%emt 0:00:44]} 42. Rh8 {[%emt 0:02:09]} Bc5 {[%emt 0:03:34]} 43. Ne6+ {[%emt 0:00:33]} Bxe6 {[%emt 0:00:20]} 44. Rxa8 {[%emt 0:00:08]} Bc8 {[%emt 0:00:03]} 45. b4 {[%emt 0:02:15]} Be3 {[%emt 0:00:56]} 46. a4 {[%emt 0:04:24]} axb4 {[%emt 0:02:18]} 47. axb5 {[%emt 0:00:13]} Bf5 {[%emt 0:00:46]} 48. bxc6 {[%emt 0:00:29]} Kxc6 {[%emt 0:00:18]} 49. Kb2 {[%emt 0:04:25]} Bxg5 {[%emt 0:00:18]} 50. Rf8 {[%emt 0:02:36]} Bh6 {[%emt 0:01:15]} 51. Rf7 {[%emt 0:00:27]} Bd2 {[%emt 0:00:24]} 52. Nh7 {[%emt 0:00:54]} Bc3+ {[%emt 0:00:52]} 53. Kc1 {[%emt 0:00:01]} Be6 {[%emt 0:00:54]} 54. Rf1 {[%emt 0:00:42]} Bg7 {[%emt 0:00:41]} 55. Ng5 {[%emt 0:00:52]} Bh6 {[%emt 0:00:08]} 56. Rg1 {[%emt 0:00:03]} Bf5 {[%emt 0:00:47]} 57. Kb2 {[%emt 0:00:21]} Kb5 {[%emt 0:00:16]} 58. Kb3 {[%emt 0:00:49]} Kc5 {[%emt 0:00:49]} 59. c3 {[%emt 0:01:08]} bxc3 {[%emt 0:00:18]} 60. Kxc3 {[%emt 0:00:05]} 1/2-1/2

[Event "WJCC U20 Girls 2019"]
[Site "New Delhi"]
[Date "2019.10.17"]
[Round "4.19"]
[White "Ferkova, Dominika"]
[Black "Song, Yuxin"]
[Result "0-1"]
[ECO "E54"]
[WhiteElo "2096"]
[BlackElo "2292"]
[Annotator "NA"]
[PlyCount "76"]
[EventDate "2019.10.15"]
[EventType "swiss"]
[EventCountry "IND"]
[SourceTitle "playchess.com"]
[Source "ChessBase"]
[SourceQuality "1"]
[TimeControl "40/5400+30:1800+30"]

1. d4 {[%emt 0:02:11]} Nf6 {[%emt 0:00:00]} 2. c4 {[%emt 0:00:22]} e6 {[%emt 0:00:00]} 3. Nc3 {[%emt 0:00:07]} Bb4 {[%emt 0:00:00]} 4. e3 {[%emt 0:00:09]} O-O {[%emt 0:00:00]} 5. Bd3 {[%emt 0:00:04]} d5 {[%emt 0:00:00]} 6. Nf3 {[%emt 0:00:05]} c5 {[%emt 0:00:07]} 7. O-O {[%emt 0:00:05]} dxc4 {[%emt 0:00:07]} 8. Bxc4 {[%emt 0:00:06]} Nc6 {[%emt 0:00:03]} 9. a3 {[%emt 0:03:52]} Ba5 {[%emt 0:00:05]} 10. Ne2 {[%emt 0:09:28]} cxd4 {[%emt 0:00:06]} 11. exd4 {[%emt 0:02:31]} h6 {[%emt 0:00:03]} 12. b4 {[%emt 0:05:33]} Bc7 {[%emt 0:02:56]} 13. Qb3 {[%emt 0:03:58]} b6 {[%emt 0:03:24]} 14. Re1 {[%emt 0:23:16]} Bb7 {[%emt 0:03:03]} 15. Bb2 {[%emt 0:03:04]} Ne7 {[%emt 0:01:17]} 16. Ne5 {[%emt 0:09:36]} Ned5 {[%emt 0:11:20]} 17. Ng3 {[%emt 0:09:15]} Bd6 {[%emt 0:05:48]} 18. Rac1 {[%emt 0:07:21]} Rc8 {[%emt 0:10:48]} 19. Bb5 {[%emt 0:02:24]} a6 {[%emt 0:06:04]} 20. Rxc8 {[%emt 0:02:33]} Qxc8 {[%emt 0:00:21]} 21. Rc1 {[%emt 0:00:21]} Qa8 {[%emt 0:00:09]} 22. Bc6 {[%emt 0:02:16]} Ne7 {[%emt 0:06:07]} 23. Bxb7 {[%emt 0:03:04]} Qxb7 {[%emt 0:00:01]} 24. a4 {[%emt 0:02:19]} b5 {[%emt 0:12:18]} 25. a5 {[%emt 0:00:08]} Qd5 {[%emt 0:00:21]} 26. Qa3 {[%emt 0:02:05]} Rc8 {[%emt 0:00:08]} 27. Rxc8+ {[%emt 0:00:58]} Nxc8 {[%emt 0:00:02]} 28. Nd3 {[%emt 0:01:00]} Bxg3 {[%emt 0:01:28]} 29. hxg3 {[%emt 0:00:29]} Nd6 {[%emt 0:00:02]} 30. Nc5 {[%emt 0:01:50]} Nc4 {[%emt 0:00:08]} 31. Qc3 {[%emt 0:01:13]} Qh5 {[%emt 0:05:11]} 32. f3 {[%emt 0:02:00]} Nd5 {[%emt 0:00:36]} 33. Qb3 {[%emt 0:00:38]} Qg6 {[%emt 0:00:12]} 34. Ne4 {[%emt 0:01:24]} f5 {[%emt 0:00:15]} 35. Nf2 {[%emt 0:00:09]} Qxg3 {[%emt 0:00:40]} 36. Bc1 {[%emt 0:00:03]} h5 {[%emt 0:07:09]} 37. Nd3 {[%emt 0:01:56]} h4 {[%emt 0:00:26]} 38. Nf2 {[%emt 0:00:22]} h3 {[%emt 0:00:11]} 0-1

[Event "WJCC U20 Girls 2019"]
[Site "New Delhi"]
[Date "2019.10.17"]
[Round "4.20"]
[White "Li, Yunshan"]
[Black "Zhang, Xiao"]
[Result "1/2-1/2"]
[ECO "D20"]
[WhiteElo "2289"]
[BlackElo "2053"]
[Annotator "NA"]
[PlyCount "79"]
[EventDate "2019.10.15"]
[EventType "swiss"]
[EventCountry "IND"]
[SourceTitle "playchess.com"]
[Source "ChessBase"]
[SourceQuality "1"]
[TimeControl "40/5400+30:1800+30"]

1. d4 {[%emt 0:00:00]} d5 {[%emt 0:00:00]} 2. c4 {[%emt 0:00:00]} dxc4 {[%emt 0:00:07]} 3. e4 {[%emt 0:00:00]} e5 {[%emt 0:03:27]} 4. Nf3 {[%emt 0:00:14]} exd4 {[%emt 0:00:05]} 5. Bxc4 {[%emt 0:00:06]} Bb4+ {[%emt 0:00:04]} 6. Bd2 {[%emt 0:00:09]} Bxd2+ {[%emt 0:00:07]} 7. Nbxd2 {[%emt 0:00:10]} Nc6 {[%emt 0:00:16]} 8. Nb3 {[%emt 0:00:51]} Nf6 {[%emt 0:02:33]} 9. e5 {[%emt 0:21:08]} Nd5 {[%emt 0:01:33]} 10. Nbxd4 {[%emt 0:01:20]} Nxd4 {[%emt 0:02:05]} 11. Qxd4 {[%emt 0:02:09]} Be6 {[%emt 0:01:09]} 12. O-O {[%emt 0:00:46]} O-O {[%emt 0:01:33]} 13. Qe4 {[%emt 0:03:04]} c6 {[%emt 0:04:46]} 14. Rfd1 {[%emt 0:04:16]} Qe7 {[%emt 0:02:51]} 15. Nd4 {[%emt 0:02:54]} Rad8 {[%emt 0:05:44]} 16. Nxe6 {[%emt 0:09:04]} fxe6 {[%emt 0:01:41]} 17. Bd3 {[%emt 0:01:09]} g6 {[%emt 0:00:27]} 18. g3 {[%emt 0:00:58]} Qc5 {[%emt 0:03:19]} 19. Qe2 {[%emt 0:02:34]} Rd7 {[%emt 0:05:52]} 20. Rac1 {[%emt 0:04:16]} Qb6 {[%emt 0:00:30]} 21. h4 {[%emt 0:00:43]} Rdf7 {[%emt 0:02:00]} 22. Rf1 {[%emt 0:00:41]} Rf3 {[%emt 0:04:10]} 23. Kg2 {[%emt 0:00:43]} Qd4 {[%emt 0:00:44]} 24. Be4 {[%emt 0:09:59]} Rxg3+ 25. fxg3 {[%emt 0:06:41]} Ne3+ {[%emt 0:01:54]} 26. Kh2 Nxf1+ {[%emt 0:01:56]} 27. Rxf1 {[%emt 0:00:45]} Rxf1 {[%emt 0:00:07]} 28. Qxf1 {[%emt 0:00:10]} Qxe4 {[%emt 0:00:12]} 29. Qf6 {[%emt 0:01:54]} Qf5 {[%emt 0:05:19]} 30. Qd8+ {[%emt 0:00:57]} Kg7 {[%emt 0:00:14]} 31. Qe7+ {[%emt 0:01:25]} Kh6 {[%emt 0:05:23]} 32. Qxb7 {[%emt 0:06:01]} Qxe5 {[%emt 0:00:18]} 33. Qxa7 {[%emt 0:00:29]} Qxb2+ {[%emt 0:00:41]} 34. Kh3 {[%emt 0:00:36]} Qc1 {[%emt 0:04:49]} 35. Qf7 {[%emt 0:02:54]} Qh1+ {[%emt 0:06:32]} 36. Kg4 {[%emt 0:00:03]} Qd1+ {[%emt 0:00:06]} 37. Qf3 {[%emt 0:01:11]} Qd8 {[%emt 0:01:28]} 38. Qxc6 {[%emt 0:01:13]} Qd4+ {[%emt 0:01:49]} 39. Kh3 {[%emt 0:01:01]} Qf6 {[%emt 0:02:02]} 40. Qc7 1/2-1/2

[Event "WJCC U20 Girls 2019"]
[Site "New Delhi"]
[Date "2019.10.17"]
[Round "4.21"]
[White "Obregon Garcia, Roxangel"]
[Black "Chandreyee, Hajra"]
[Result "1-0"]
[ECO "B12"]
[WhiteElo "2267"]
[BlackElo "2024"]
[Annotator "NA"]
[PlyCount "71"]
[EventDate "2019.10.15"]
[EventType "swiss"]
[EventCountry "IND"]
[SourceTitle "playchess.com"]
[Source "ChessBase"]
[SourceQuality "1"]
[TimeControl "40/5400+30:1800+30"]

1. e4 {[%emt 0:00:00]} c6 {[%emt 0:00:00]} 2. d4 {[%emt 0:00:00]} d5 {[%emt 0:00:00]} 3. e5 {[%emt 0:00:00]} Bf5 {[%emt 0:00:00]} 4. Nf3 {[%emt 0:00:00]} e6 {[%emt 0:00:07]} 5. Be2 {[%emt 0:00:00]} Ne7 {[%emt 0:00:25]} 6. O-O {[%emt 0:00:00]} Nd7 {[%emt 0:00:29]} 7. Nbd2 {[%emt 0:00:10]} Ng6 {[%emt 0:02:06]} 8. Nb3 {[%emt 0:01:09]} Be7 {[%emt 0:01:19]} 9. c3 {[%emt 0:00:54]} O-O {[%emt 0:00:53]} 10. Ne1 {[%emt 0:01:54]} Nh8 {[%emt 0:01:47]} 11. Bd3 {[%emt 0:01:17]} Bxd3 {[%emt 0:00:38]} 12. Nxd3 {[%emt 0:00:06]} f6 {[%emt 0:02:02]} 13. Nf4 {[%emt 0:04:08]} Qc8 {[%emt 0:11:11]} 14. Nxe6 {[%emt 0:03:29]} Re8 {[%emt 0:02:43]} 15. exf6 {[%emt 0:05:00]} Nxf6 {[%emt 0:01:02]} 16. Nec5 {[%emt 0:11:46]} Bd6 {[%emt 0:01:58]} 17. Nd3 {[%emt 0:07:01]} Qf5 {[%emt 0:08:43]} 18. f4 {[%emt 0:09:17]} Nf7 {[%emt 0:10:16]} 19. Ne5 {[%emt 0:01:31]} Nh6 {[%emt 0:00:31]} 20. h3 {[%emt 0:12:31]} Ne4 {[%emt 0:03:41]} 21. Qf3 {[%emt 0:01:19]} Qe6 {[%emt 0:03:42]} 22. Nd2 {[%emt 0:10:28]} Bxe5 {[%emt 0:02:54]} 23. dxe5 {[%emt 0:02:14]} Nf5 {[%emt 0:04:54]} 24. g4 {[%emt 0:09:11]} Nfg3 {[%emt 0:05:36]} 25. Nxe4 {[%emt 0:00:03]} Nxe4 {[%emt 0:00:53]} 26. Be3 {[%emt 0:02:07]} Rf8 {[%emt 0:00:40]} 27. Rae1 {[%emt 0:03:44]} g5 {[%emt 0:01:31]} 28. f5 {[%emt 0:01:21]} Qxe5 {[%emt 0:02:31]} 29. Bxg5 {[%emt 0:00:06]} Qc7 {[%emt 0:00:42]} 30. Be3 {[%emt 0:01:45]} Rae8 {[%emt 0:00:16]} 31. Kg2 {[%emt 0:01:16]} c5 {[%emt 0:00:47]} 32. c4 {[%emt 0:05:16]} Qa5 {[%emt 0:02:55]} 33. Re2 {[%emt 0:03:35]} Qxa2 {[%emt 0:01:56]} 34. Bh6 {[%emt 0:00:19]} Rf6 {[%emt 0:01:24]} 35. g5 {[%emt 0:00:19]} Rb6 {[%emt 0:00:51]} 36. f6 {[%emt 0:00:42]} 1-0

[Event "WJCC U20 Girls 2019"]
[Site "New Delhi"]
[Date "2019.10.17"]
[Round "4.22"]
[White "Kiolbasa, Oliwia"]
[Black "Pandey Srishti"]
[Result "1/2-1/2"]
[ECO "B06"]
[WhiteElo "2223"]
[BlackElo "1963"]
[Annotator "NA"]
[PlyCount "75"]
[EventDate "2019.10.15"]
[EventType "swiss"]
[EventCountry "IND"]
[SourceTitle "playchess.com"]
[Source "ChessBase"]
[SourceQuality "1"]
[TimeControl "40/5400+30:1800+30"]

1. e4 {[%emt 0:00:00]} g6 {[%emt 0:00:00]} 2. d4 {[%emt 0:00:09]} Bg7 {[%emt 0:00:00]} 3. Nc3 {[%emt 0:03:12]} d6 {[%emt 0:00:00]} 4. Be3 {[%emt 0:00:29]} Nd7 {[%emt 0:01:43]} 5. Qd2 {[%emt 0:01:08]} a6 {[%emt 0:01:07]} 6. O-O-O {[%emt 0:00:24]} b5 {[%emt 0:00:45]} 7. h4 {[%emt 0:00:37]} Bb7 {[%emt 0:01:26]} 8. f3 {[%emt 0:00:31]} e5 {[%emt 0:01:43]} 9. h5 {[%emt 0:06:19]} exd4 {[%emt 0:05:48]} 10. Bxd4 {[%emt 0:00:11]} Bxd4 {[%emt 0:00:03]} 11. Qxd4 {[%emt 0:00:14]} Qf6 {[%emt 0:00:06]} 12. hxg6 {[%emt 0:03:21]} fxg6 {[%emt 0:00:28]} 13. Qd2 {[%emt 0:00:36]} Ne7 {[%emt 0:01:06]} 14. Nh3 {[%emt 0:01:29]} Nb6 {[%emt 0:02:57]} 15. Nf4 {[%emt 0:07:28]} O-O {[%emt 0:23:25]} 16. g3 {[%emt 0:06:06]} b4 {[%emt 0:04:40]} 17. Ncd5 {[%emt 0:01:30]} Bxd5 {[%emt 0:00:05]} 18. Nxd5 {[%emt 0:16:09]} Nexd5 {[%emt 0:01:27]} 19. exd5 {[%emt 0:00:15]} a5 {[%emt 0:07:50]} 20. Bh3 {[%emt 0:03:10]} Kg7 {[%emt 0:11:44]} 21. Bg2 {[%emt 0:10:08]} h5 {[%emt 0:00:28]} 22. Qd4 {[%emt 0:04:34]} Rae8 {[%emt 0:01:06]} 23. Qxf6+ {[%emt 0:10:50]} Rxf6 {[%emt 0:00:44]} 24. f4 {[%emt 0:00:55]} Re2 {[%emt 0:01:58]} 25. Bf3 {[%emt 0:00:39]} Rf2 {[%emt 0:02:07]} 26. Rd3 {[%emt 0:03:42]} Rf7 {[%emt 0:02:06]} 27. Bd1 {[%emt 0:02:06]} Re7 {[%emt 0:02:03]} 28. a3 {[%emt 0:04:32]} Re4 {[%emt 0:02:03]} 29. axb4 {[%emt 0:01:12]} axb4 {[%emt 0:00:15]} 30. b3 {[%emt 0:01:22]} Nd7 {[%emt 0:03:55]} 31. Rg1 {[%emt 0:06:28]} Kf6 {[%emt 0:05:18]} 32. Bf3 {[%emt 0:01:03]} Re8 {[%emt 0:00:12]} 33. Bd1 {[%emt 0:00:07]} Nc5 {[%emt 0:03:07]} 34. Rd2 {[%emt 0:00:49]} Rxd2 {[%emt 0:09:27]} 35. Kxd2 {[%emt 0:00:02]} Ra8 {[%emt 0:00:01]} 36. Ke3 {[%emt 0:01:01]} Re8+ {[%emt 0:00:58]} 37. Kd2 {[%emt 0:00:45]} Ra8 {[%emt 0:00:01]} 38. Ke3 {[%emt 0:00:06]} 1/2-1/2

[Event "WJCC U20 Girls 2019"]
[Site "New Delhi"]
[Date "2019.10.17"]
[Round "4.23"]
[White "Ulziikhishigjargal, Ochirkhuyag"]
[Black "Savitha Shri B"]
[Result "1/2-1/2"]
[ECO "B22"]
[WhiteElo "2194"]
[BlackElo "1916"]
[Annotator "NA"]
[PlyCount "90"]
[EventDate "2019.10.15"]
[EventType "swiss"]
[EventCountry "IND"]
[SourceTitle "playchess.com"]
[Source "ChessBase"]
[SourceQuality "1"]
[TimeControl "40/5400+30:1800+30"]

1. e4 {[%emt 0:00:00]} c5 {[%emt 0:00:00]} 2. c3 {[%emt 0:00:00]} d5 {[%emt 0:00:13]} 3. exd5 {[%emt 0:00:00]} Qxd5 {[%emt 0:00:07]} 4. d4 {[%emt 0:00:00]} e6 {[%emt 0:00:33]} 5. Nf3 {[%emt 0:00:16]} Nc6 {[%emt 0:01:10]} 6. Be2 {[%emt 0:03:06]} Nf6 {[%emt 0:00:22]} 7. O-O {[%emt 0:00:59]} cxd4 {[%emt 0:01:26]} 8. Nxd4 {[%emt 0:02:26]} Nxd4 {[%emt 0:00:44]} 9. Qxd4 {[%emt 0:02:52]} Bc5 {[%emt 0:01:04]} 10. Qxd5 {[%emt 0:05:01]} Nxd5 {[%emt 0:00:28]} 11. Bf3 {[%emt 0:00:01]} O-O {[%emt 0:00:11]} 12. Rd1 {[%emt 0:00:12]} Re8 {[%emt 0:01:28]} 13. Nd2 {[%emt 0:06:32]} a6 {[%emt 0:06:26]} 14. Ne4 {[%emt 0:06:30]} Be7 {[%emt 0:00:12]} 15. c4 {[%emt 0:01:13]} Nb4 {[%emt 0:00:18]} 16. Bf4 {[%emt 0:00:50]} Nc6 {[%emt 0:03:41]} 17. Bd6 {[%emt 0:05:58]} f5 {[%emt 0:07:23]} 18. Nc5 {[%emt 0:03:16]} Bf6 {[%emt 0:01:37]} 19. Bxc6 {[%emt 0:05:03]} bxc6 {[%emt 0:00:16]} 20. Rab1 {[%emt 0:00:01]} e5 {[%emt 0:04:19]} 21. b4 {[%emt 0:07:09]} Be6 {[%emt 0:01:30]} 22. Nxe6 {[%emt 0:00:13]} Rxe6 {[%emt 0:00:03]} 23. a4 {[%emt 0:00:04]} Be7 {[%emt 0:04:06]} 24. Bc7 {[%emt 0:03:35]} Ra7 {[%emt 0:04:43]} 25. Bb6 {[%emt 0:01:29]} Rb7 {[%emt 0:00:11]} 26. a5 {[%emt 0:00:03]} Rd6 {[%emt 0:04:12]} 27. Rxd6 {[%emt 0:11:58]} Bxd6 {[%emt 0:00:02]} 28. b5 {[%emt 0:00:08]} cxb5 {[%emt 0:01:01]} 29. cxb5 {[%emt 0:00:19]} axb5 {[%emt 0:01:54]} 30. Rxb5 {[%emt 0:00:02]} Bb8 {[%emt 0:07:10]} 31. Kf1 {[%emt 0:04:45]} Bc7 {[%emt 0:18:37]} 32. a6 {[%emt 0:13:23]} Rxb6 {[%emt 0:00:08]} 33. a7 {[%emt 0:00:00]} Ra6 {[%emt 0:00:08]} 34. Rb8+ {[%emt 0:00:05]} Kf7 {[%emt 0:00:04]} 35. a8=Q {[%emt 0:00:05]} Rxa8 {[%emt 0:00:05]} 36. Rxa8 {[%emt 0:00:04]} Bb6 {[%emt 0:01:31]} 37. Ke2 {[%emt 0:00:43]} Bd4 {[%emt 0:00:05]} 38. f3 {[%emt 0:00:24]} Kf6 {[%emt 0:00:11]} 39. h4 {[%emt 0:02:35]} h5 {[%emt 0:05:48]} 40. Ra6+ {[%emt 0:00:18]} Kf7 {[%emt 0:00:10]} 41. Ra4 {[%emt 0:30:12]} Kf6 {[%emt 0:31:39]} 42. Ra6+ {[%emt 0:09:08]} Kf7 {[%emt 0:00:11]} 43. Rc6 {[%emt 0:00:01]} Bg1 {[%emt 0:01:02]} 44. Rc1 {[%emt 0:01:42]} Bd4 45. Rc6 {[%emt 0:05:27]} Bg1 {[%emt 0:04:31]} 1/2-1/2

[Event "WJCC U20 Girls 2019"]
[Site "New Delhi"]
[Date "2019.10.17"]
[Round "4.24"]
[White "Bakshi, Rutuja"]
[Black "Aakanksha Hagawane"]
[Result "1/2-1/2"]
[ECO "A05"]
[WhiteElo "2029"]
[BlackElo "2181"]
[Annotator "NA"]
[PlyCount "82"]
[EventDate "2019.10.15"]
[EventType "swiss"]
[EventCountry "IND"]
[SourceTitle "playchess.com"]
[Source "ChessBase"]
[SourceQuality "1"]
[TimeControl "40/5400+30:1800+30"]

1. Nf3 {[%emt 0:00:02]} Nf6 {[%emt 0:00:00]} 2. c4 {[%emt 0:00:44]} g6 {[%emt 0:00:51]} 3. g3 {[%emt 0:00:05]} Bg7 {[%emt 0:00:12]} 4. Bg2 {[%emt 0:00:25]} d5 {[%emt 0:00:56]} 5. cxd5 {[%emt 0:04:24]} Nxd5 {[%emt 0:00:02]} 6. Nc3 {[%emt 0:01:47]} Nc6 {[%emt 0:03:59]} 7. a3 {[%emt 0:06:40]} O-O {[%emt 0:01:45]} 8. O-O {[%emt 0:01:33]} Nb6 {[%emt 0:01:38]} 9. d3 {[%emt 0:06:28]} h6 {[%emt 0:04:09]} 10. Qc2 {[%emt 0:03:10]} e5 {[%emt 0:02:29]} 11. b4 {[%emt 0:07:40]} Be6 {[%emt 0:02:51]} 12. Ne4 {[%emt 0:04:14]} Bd5 {[%emt 0:04:51]} 13. Bb2 {[%emt 0:02:49]} Bxe4 {[%emt 0:01:19]} 14. dxe4 {[%emt 0:00:08]} a6 {[%emt 0:00:33]} 15. e3 {[%emt 0:02:12]} Qe7 {[%emt 0:00:47]} 16. Nd2 {[%emt 0:02:33]} Rfd8 {[%emt 0:04:37]} 17. Rfd1 {[%emt 0:06:52]} Rd6 {[%emt 0:10:29]} 18. Bc3 {[%emt 0:06:06]} Qd7 {[%emt 0:09:25]} 19. a4 {[%emt 0:06:19]} a5 {[%emt 0:12:57]} 20. b5 {[%emt 0:02:37]} Nb4 {[%emt 0:03:00]} 21. Bxb4 {[%emt 0:01:26]} axb4 {[%emt 0:00:01]} 22. a5 {[%emt 0:01:48]} Nc8 {[%emt 0:02:25]} 23. Bf1 {[%emt 0:02:05]} Bf8 {[%emt 0:06:32]} 24. Nc4 {[%emt 0:05:29]} Rxd1 {[%emt 0:00:46]} 25. Rxd1 Qe8 {[%emt 0:03:54]} 26. Qb2 {[%emt 0:02:40]} Nd6 {[%emt 0:01:08]} 27. Nxd6 {[%emt 0:05:49]} Bxd6 {[%emt 0:01:22]} 28. Ra1 {[%emt 0:02:51]} c6 {[%emt 0:06:45]} 29. b6 {[%emt 0:04:03]} Bc5 30. Bc4 {[%emt 0:00:45]} Qe7 {[%emt 0:00:46]} 31. Bb3 {[%emt 0:01:16]} Qd6 {[%emt 0:02:02]} 32. Qc2 {[%emt 0:02:30]} Qe7 {[%emt 0:02:02]} 33. Ra2 {[%emt 0:01:16]} Kf8 {[%emt 0:02:10]} 34. Qc4 {[%emt 0:00:46]} Kg7 {[%emt 0:00:22]} 35. Kg2 {[%emt 0:02:34]} Ra6 {[%emt 0:01:18]} 36. h3 {[%emt 0:02:08]} h5 {[%emt 0:02:15]} 37. h4 {[%emt 0:00:16]} Kf8 {[%emt 0:00:54]} 38. Kg1 {[%emt 0:00:51]} Kg7 {[%emt 0:00:13]} 39. Kg2 {[%emt 0:00:07]} Kf8 {[%emt 0:00:38]} 40. Kg1 {[%emt 0:00:54]} Kg7 {[%emt 0:00:08]} 41. Kg2 {[%emt 0:30:20]} Kf8 {[%emt 0:31:16]} 1/2-1/2

[Event "WJCC U20 Girls 2019"]
[Site "New Delhi"]
[Date "2019.10.17"]
[Round "4.26"]
[White "Chitlange Sakshi"]
[Black "Tsotsonava, Elene"]
[Result "1-0"]
[ECO "D00"]
[WhiteElo "2175"]
[BlackElo "1905"]
[Annotator "NA"]
[PlyCount "65"]
[EventDate "2019.10.15"]
[EventType "swiss"]
[EventCountry "IND"]
[SourceTitle "playchess.com"]
[Source "ChessBase"]
[SourceQuality "1"]
[TimeControl "40/5400+30:1800+30"]

1. d4 {[%emt 0:00:00]} d5 {[%emt 0:00:00]} 2. Bf4 {[%emt 0:00:00]} c5 {[%emt 0:00:00]} 3. e3 {[%emt 0:00:11]} Nc6 {[%emt 0:00:16]} 4. Nf3 {[%emt 0:00:34]} Bg4 {[%emt 0:00:31]} 5. Be2 {[%emt 0:09:32]} cxd4 {[%emt 0:00:40]} 6. exd4 {[%emt 0:01:01]} Qb6 {[%emt 0:05:22]} 7. Nc3 {[%emt 0:01:29]} Bxf3 {[%emt 0:07:25]} 8. Bxf3 {[%emt 0:00:30]} e6 {[%emt 0:00:07]} 9. Ne2 {[%emt 0:05:12]} Nf6 {[%emt 0:00:43]} 10. O-O {[%emt 0:03:07]} Be7 {[%emt 0:00:18]} 11. Rb1 {[%emt 0:04:43]} O-O {[%emt 0:00:26]} 12. c3 {[%emt 0:00:07]} Qa6 {[%emt 0:02:05]} 13. Nc1 {[%emt 0:02:43]} Na5 {[%emt 0:06:45]} 14. Be2 {[%emt 0:01:37]} Qc6 {[%emt 0:00:42]} 15. Nd3 {[%emt 0:01:08]} Nc4 {[%emt 0:05:07]} 16. Ne5 {[%emt 0:03:13]} Nxe5 {[%emt 0:01:31]} 17. dxe5 {[%emt 0:01:57]} Ne4 {[%emt 0:01:28]} 18. Bd3 {[%emt 0:02:13]} f5 {[%emt 0:03:33]} 19. exf6 {[%emt 0:00:44]} Rxf6 {[%emt 0:07:52]} 20. Be5 {[%emt 0:04:21]} Rf5 {[%emt 0:01:31]} 21. Bd4 {[%emt 0:00:06]} e5 {[%emt 0:05:13]} 22. Be3 {[%emt 0:04:08]} Raf8 {[%emt 0:05:44]} 23. Qe2 {[%emt 0:11:17]} Bg5 {[%emt 0:05:37]} 24. f3 {[%emt 0:06:36]} Nd6 {[%emt 0:21:15]} 25. Bxf5 {[%emt 0:00:46]} Rxf5 {[%emt 0:00:07]} 26. Bxg5 {[%emt 0:01:03]} Rxg5 {[%emt 0:00:09]} 27. f4 {[%emt 0:00:39]} exf4 {[%emt 0:01:21]} 28. Qe6+ {[%emt 0:01:00]} Kh8 {[%emt 0:03:58]} 29. Rxf4 {[%emt 0:00:35]} Qc5+ {[%emt 0:01:37]} 30. Kh1 {[%emt 0:00:40]} h6 {[%emt 0:00:07]} 31. h4 {[%emt 0:03:03]} Rg3 {[%emt 0:00:59]} 32. Rf8+ {[%emt 0:00:22]} Kh7 {[%emt 0:00:13]} 33. h5 {[%emt 0:00:08]} 1-0